bitfinex/quotes_BTCUSD_20251219
["timestamp","ask_amount","ask_price","bid_price","bid_amount"]
[1766178978287,0.00572,87991.0,87979.0,0.77707525]
[1766178978509,4.54e-06,87990.0,87988.0,0.48284]
[1766178978719,0.00572,87998.0,87989.0,1.04736]
[1766178978931,0.03986525,87998.0,87989.0,1.04736]
[1766178979173,0.01361061,87995.0,87989.0,1.04736]
[1766178983864,0.01361061,87995.0,87989.0,0.48284]
[1766178984469,0.01361061,87995.0,87985.0,0.53903]
[1766178985573,0.01361061,87995.0,87986.0,0.53903]
[1766178985774,0.00572,87997.0,87986.0,0.53903]
[1766178985976,0.01136299,88005.0,87982.0,0.0739157]
[1766178985977,0.012,88010.0,87994.0,0.53903]
[1766178986163,0.01361061,87999.0,87995.0,0.48354]
[1766178986360,0.45699,87998.0,87980.0,0.83390575]
[1766178986605,0.45699,87998.0,87981.0,0.00572]
[1766178986808,0.00572,87997.0,87984.0,0.53903]
[1766178987387,0.00572,87997.0,87984.0,1.02257]
[1766178987593,0.00572,87997.0,87987.0,0.53903]
[1766178995825,0.00572,87997.0,87984.0,0.0113657]
[1766178995826,0.00572,87997.0,87993.0,0.45094]
[1766178996026,0.00572,87997.0,87994.0,0.54031]
[1766178996235,0.00572,87997.0,87993.0,0.45094]
[1766178996427,0.00572,87997.0,87989.0,0.54031]
[1766178996648,0.01361061,87996.0,87988.0,0.99125]
[1766178996835,0.01361061,87996.0,87987.0,0.00572]
[1766178997049,0.01361061,87996.0,87992.0,0.54031]
[1766178997467,6.1e-07,87996.0,87992.0,0.54031]
[1766178997905,6.1e-07,87996.0,87987.0,0.00572]
[1766178998193,6.1e-07,87996.0,87990.0,0.54031]
[1766178998417,6.1e-07,87996.0,87988.0,0.54031]
[1766178998603,0.46728,87995.0,87987.0,0.00572]
[1766178998833,0.46728,87995.0,87986.0,0.00572]
[1766178999416,0.03986505,87996.0,87986.0,0.00572]
[1766178999711,0.01361061,87995.0,87986.0,0.01708544]
[1766178999927,0.01361061,87995.0,87988.0,0.01136518]
[1766179000128,0.01361061,87995.0,87987.0,0.99125]
[1766179000334,0.01361061,87995.0,87988.0,0.00572]
[1766179000458,0.01361061,87995.0,87988.0,0.54031]
[1766179000662,0.01361061,87995.0,87988.0,0.45094]
[1766179000863,0.01361061,87993.0,87992.0,0.99125]
[1766179001693,0.48089061,87993.0,87985.0,0.00572]
[1766179001908,0.48089061,87993.0,87982.0,0.00572]
[1766179002253,0.46728,87991.0,87979.0,0.54031]
[1766179002545,0.00572,87992.0,87978.0,0.00572]
[1766179002746,0.01361061,87993.0,87981.0,0.01136609]
[1766179002892,0.01361061,87993.0,87986.0,0.45094]
[1766179003095,6.1e-07,87993.0,87988.0,0.45094]
[1766179003301,6.1e-07,87993.0,87990.0,0.01136492]
[1766179003501,0.00572,88001.0,87989.0,0.01136505]
[1766179003852,0.01361061,87996.0,87992.0,0.54031]
[1766179004011,0.01361061,87996.0,87987.0,0.54031]
[1766179004227,0.46728,87995.0,87986.0,0.00572]
[1766179004651,0.46728,87995.0,87986.0,0.54603]
[1766179005924,0.01361061,87996.0,87987.0,0.54031]
[1766179006129,0.01361061,87996.0,87988.0,0.54031]
[1766179006329,0.01361061,87996.0,87988.0,0.45094]
[1766179006525,0.01361061,87996.0,87989.0,0.54031]
[1766179007339,0.46728,87995.0,87986.0,0.00572]
[1766179009633,0.46728,87995.0,87986.0,0.00556834]
[1766179014037,0.473,87995.0,87982.0,0.53940231]
[1766179014250,0.473,87995.0,87983.0,0.00572]
[1766179015302,0.03414661,87998.0,87986.0,0.01136544]
[1766179015448,0.01361061,87992.0,87988.0,0.7770787]
[1766179015657,0.46728,87991.0,87982.0,0.7770787]
[1766179015866,0.01361061,87992.0,87986.0,0.54031]
[1766179016189,0.00572,88000.0,87992.0,0.54031]
[1766179016400,0.00572,88004.0,87998.0,0.54031]
[1766179016621,0.46728,88003.0,87990.0,0.7770787]
[1766179016819,0.46728,88003.0,87989.0,0.54031]
[1766179016966,0.46728,88003.0,87990.0,1.3173887]
[1766179017174,0.00572,88004.0,87991.0,0.00572]
[1766179017175,0.01361061,87992.0,87991.0,0.00572]
[1766179017387,0.01361061,87996.0,87985.0,0.45094]
[1766179017594,0.01361061,87996.0,87987.0,0.99125]
[1766179018030,0.01361061,87996.0,87988.0,0.54031]
[1766179018442,0.01361061,87996.0,87987.0,0.45094]
[1766179018845,0.48089061,87996.0,87988.0,0.00572]
[1766179021205,0.48089061,87996.0,87985.0,0.00572]
[1766179021422,0.48089061,87996.0,87986.0,0.54031]
[1766179023723,0.01361061,87995.0,87987.0,0.45094]
[1766179023917,0.05520362,88014.0,87985.0,0.7827987]
[1766179024093,0.01361061,88013.0,88000.0,0.7770787]
[1766179024293,0.01361061,88013.0,88003.0,0.7770787]
[1766179024523,0.01361061,88013.0,88004.0,1.04214]
[1766179024728,0.01361061,88013.0,88002.0,1.04214]
[1766179024928,0.01361061,88013.0,88001.0,0.00572]
[1766179025130,0.01361061,88013.0,88003.0,0.7770787]
[1766179025530,0.01365974,88013.0,88003.0,0.7770787]
[1766179025733,0.01365974,88013.0,88005.0,0.55307]
[1766179025919,0.01365974,88013.0,88006.0,0.55307]
[1766179028469,0.01365974,88013.0,88001.0,0.00572]
[1766179028674,0.45535,88012.0,88001.0,0.00572]
[1766179031320,0.45535,88012.0,88001.0,0.55879]
[1766179031537,0.45535,88012.0,88001.0,0.55848709]
[1766179037954,0.01361061,88011.0,88002.0,0.48907]
[1766179038156,0.01361061,88011.0,88002.0,1.04214]
[1766179038359,0.01361061,88011.0,88001.0,0.00541709]
[1766179038555,0.01361061,88011.0,88002.0,1.04214]
[1766179038780,0.01361061,88011.0,88001.0,0.01678059]
[1766179038982,0.01361061,88011.0,88002.0,1.00281]
[1766179039189,0.01361061,88011.0,88001.0,0.00541709]
[1766179039437,0.01361061,88011.0,88002.0,1.00281]
[1766179039649,0.01361061,88011.0,88001.0,0.00541709]
[1766179039835,0.01361061,88011.0,88003.0,0.47078]
[1766179040038,0.01361061,88011.0,88004.0,0.53203]
[1766179045390,0.45535,88019.0,88007.0,0.53203]
[1766179045588,0.03413763,88022.0,88007.0,0.53203]
[1766179045589,0.00572,88022.0,88019.0,0.53203]
[1766179045746,0.00572,88024.0,88020.0,1.00281]
[1766179046066,0.01361061,88022.0,88020.0,1.00281]
[1766179046307,0.01361061,88022.0,88020.0,0.47078]
[1766179046461,0.01361061,88022.0,88016.0,0.53203]
[1766179046662,0.04552,88034.0,88019.0,0.48214118]
[1766179046840,0.01361061,88022.0,88021.0,1.00281]
[1766179047039,0.01361061,88022.0,88021.0,1.00286737]
[1766179047243,0.01361061,88022.0,88021.0,5.737e-05]
[1766179047481,0.47045061,88022.0,88015.0,0.03413324]
[1766179047978,0.47045061,88022.0,88004.0,0.01136311]
[1766179047979,0.47045061,88022.0,88004.0,0.53203]
[1766179048212,0.00097859,88007.0,88006.0,0.03413507]
[1766179048677,0.00097859,88007.0,88005.0,0.00572]
[1766179050272,0.00097859,88007.0,88006.0,0.00572]
[1766179051290,0.00097859,88007.0,88005.0,0.00572]
[1766179052342,0.00097859,88007.0,88006.0,0.53203]
[1766179052599,0.45684,88017.0,88006.0,0.53203]
[1766179052954,0.01361061,88007.0,88006.0,0.53203]
[1766179058097,0.03413596,88034.0,88019.0,0.48782]
[1766179058305,0.03413596,88034.0,88015.0,0.01136169]
[1766179058306,0.48339,88035.0,88021.0,0.48782]
[1766179058498,0.48339,88033.0,88021.0,0.48782]
[1766179060504,0.01361061,88022.0,88021.0,0.48782]
[1766179063743,0.48339,88033.0,88021.0,0.55598551]
[1766179063920,0.48339,88033.0,88022.0,0.52815]
[1766179064856,0.48339,88033.0,88023.0,0.01136066]
[1766179065056,0.48339,88033.0,88024.0,0.52815]
[1766179065785,0.48339,88033.0,88024.0,0.53951053]
[1766179065976,0.01933061,88036.0,88028.0,0.48782]
[1766179066202,6.1e-07,88036.0,88031.0,0.52815]
[1766179066479,0.00572,88039.0,88033.0,1.01597]
[1766179066655,6.1e-07,88036.0,88030.0,0.01135976]
[1766179066859,6.1e-07,88036.0,88031.0,0.01135963]
[1766179067068,0.48339,88048.0,88033.0,0.52815]
[1766179067271,0.00572,88047.0,88039.0,0.48782]
[1766179067470,6.557e-05,88048.0,88041.0,0.48782]
[1766179067671,6.557e-05,88048.0,88042.0,0.52815]
[1766179067872,0.01361061,88050.0,88042.0,0.52815]
[1766179067873,6.1e-07,88050.0,88042.0,0.52815]
[1766179068074,6.1e-07,88050.0,88048.0,0.52815]
[1766179068278,0.01361061,88058.0,88051.0,0.48782]
[1766179068895,0.00572,88064.0,88051.0,0.48782]
[1766179069239,0.01707537,88064.0,88051.0,0.48782]
[1766179069441,0.00572,88064.0,88051.0,0.48782]
[1766179070052,0.48339,88063.0,88048.0,0.77674592]
[1766179070288,0.4947455,88063.0,88050.0,0.52815]
[1766179070702,0.4947455,88063.0,88051.0,0.52815]
[1766179070901,0.4947455,88063.0,88051.0,0.48782]
[1766179071197,0.4947455,88063.0,88052.0,0.52815]
[1766179071399,0.01135615,88058.0,88052.0,0.52815]
[1766179071602,0.01135615,88058.0,88047.0,0.00572]
[1766179071801,0.01361061,88050.0,88047.0,0.00572]
[1766179073058,0.01361061,88050.0,88047.0,0.53387]
[1766179074549,0.00572,88058.0,88049.0,0.52815]
[1766179074782,0.00572,88058.0,88053.0,1.01597]
[1766179074992,0.48339,88065.0,88053.0,1.01597]
[1766179075200,0.00572,88062.0,88054.0,0.52815]
[1766179075404,0.00572,88062.0,88056.0,1.01597]
[1766179075622,6.555e-05,88065.0,88059.0,0.52815]
[1766179075829,0.01135395,88075.0,88065.0,0.48782]
[1766179075977,0.00572,88074.0,88066.0,0.52815]
[1766179076177,0.01707408,88074.0,88066.0,0.52815]
[1766179076375,0.01135421,88073.0,88066.0,0.52815]
[1766179076683,0.01135447,88071.0,88066.0,0.52815]
[1766179077201,0.01135421,88073.0,88066.0,0.52815]
[1766179077360,0.01135434,88072.0,88066.0,0.52815]
[1766179077568,0.01135421,88073.0,88066.0,0.52815]
[1766179077793,0.01135473,88069.0,88066.0,0.52815]
[1766179078115,0.01135447,88071.0,88066.0,0.52815]
[1766179078316,0.01135473,88069.0,88066.0,0.52815]
[1766179079283,0.01135447,88071.0,88066.0,0.52815]
[1766179079488,0.01135447,88071.0,88066.0,1.01597]
[1766179080030,0.0113546,88070.0,88066.0,1.01597]
[1766179080229,0.01135421,88073.0,88066.0,0.48782]
[1766179080439,0.01135447,88071.0,88069.0,0.52815]
[1766179081087,0.01135434,88073.0,88051.0,0.01361061]
[1766179081088,1.3e-07,88073.0,88071.0,0.48782]
[1766179081266,1.3e-07,88081.0,88072.0,0.52815]
[1766179081513,0.05676865,88077.0,88072.0,0.53383]
[1766179081631,0.06812047,88080.0,88072.0,0.53383]
[1766179081827,0.06812336,88076.0,88072.0,0.53383]
[1766179082129,0.01135434,88072.0,88062.0,0.48782]
[1766179082358,0.48339,88072.0,88063.0,0.00568]
[1766179082763,0.49474434,88072.0,88063.0,0.53383]
[1766179082959,0.48339,88072.0,88063.0,0.53383]
[1766179083592,0.01135421,88073.0,88064.0,1.01597]
[1766179083798,0.01135408,88074.0,88064.0,1.01597]
[1766179084027,0.01135421,88073.0,88064.0,1.01597]
[1766179084449,0.01135421,88073.0,88065.0,0.53064]
[1766179085490,0.00568,88076.0,88064.0,0.99099]
[1766179085718,0.00578813,88076.0,88063.0,0.00568]
[1766179086104,0.00578813,88076.0,88064.0,0.99099]
[1766179086302,0.00578813,88076.0,88063.0,0.00568]
[1766179086502,0.01135395,88075.0,88064.0,0.46035]
[1766179086883,0.01135421,88073.0,88065.0,0.53064]
[1766179087101,0.01135408,88074.0,88065.0,0.53064]
[1766179087304,0.01135395,88075.0,88065.0,0.53064]
[1766179087506,0.01135421,88073.0,88065.0,0.99099]
[1766179087706,0.01135434,88072.0,88065.0,0.99099]
[1766179087886,0.01135421,88073.0,88065.0,0.99099]
[1766179088101,0.01135421,88073.0,88063.0,0.00568]
[1766179088367,0.01135421,88073.0,88063.0,0.53632]
[1766179088655,0.48823408,88074.0,88063.0,0.53632]
[1766179088922,0.01135421,88073.0,88063.0,0.53632]
[1766179089754,0.01135421,88073.0,88070.0,0.5]
[1766179090996,0.48823408,88074.0,88070.0,0.5]
[1766179091238,0.01135421,88073.0,88070.0,0.5]
[1766179091431,0.48823408,88074.0,88070.0,0.5]
[1766179091793,0.01135421,88073.0,88070.0,0.5]
[1766179091993,0.48823408,88074.0,88070.0,0.5]
[1766179092937,0.47688,88074.0,88070.0,0.5]
[1766179094783,0.47688,88072.0,88063.0,0.00568]
[1766179095090,0.01714196,88076.0,88064.0,0.99099]
[1766179095488,0.00578813,88076.0,88064.0,0.99099]
[1766179095663,0.01714196,88076.0,88064.0,0.99099]
[1766179095847,0.00578813,88076.0,88067.0,0.53064]
[1766179096487,0.0004,88082.0,88071.0,0.53064]
[1766179096692,0.01135138,88095.0,88074.0,0.01135408]
[1766179096894,0.00568,88093.0,88076.0,0.99099]
[1766179097095,0.01155112,88097.0,88076.0,0.99099]
[1766179097323,0.01703125,88096.0,88076.0,0.01135383]
[1766179097545,0.01703125,88096.0,88077.0,0.99099]
[1766179097752,0.01135151,88094.0,88075.0,0.00568]
[1766179097955,0.01703151,88094.0,88075.0,0.00568]
[1766179098159,0.00568,88094.0,88077.0,0.53064]
[1766179098336,0.0002,88097.0,88083.0,0.53064]
[1766179098655,0.0002,88097.0,88088.0,0.53064]
[1766179098812,0.0002,88097.0,88088.0,0.47611]
[1766179099156,0.0002,88097.0,88089.0,0.55193]
[1766179100179,0.0002,88097.0,88092.0,0.55193]
[1766179101164,0.05361061,88164.0,88092.0,0.55193]
[1766179101165,0.0004,88113.0,88093.0,0.47611]
[1766179101423,0.0004,88113.0,88103.0,0.47611]
[1766179101620,0.0002,88117.0,88108.0,0.47611]
[1766179101747,0.0002,88117.0,88109.0,0.55193]
[1766179102232,0.01134932,88111.0,88102.0,0.00572]
[1766179102434,0.0113497,88108.0,88102.0,0.00572]
[1766179102569,0.01134957,88109.0,88102.0,0.00572]
[1766179103165,0.01134944,88110.0,88102.0,0.00572]
[1766179103599,0.00010802,88111.0,88102.0,0.00572]
[1766179103774,0.01134957,88109.0,88102.0,0.00572]
[1766179104693,0.06820427,88111.0,88102.0,0.00572]
[1766179104694,4.27e-06,88111.0,88102.0,0.48183]
[1766179104893,0.01134944,88110.0,88102.0,0.48183]
[1766179105321,0.01135359,88111.0,88102.0,0.48183]
[1766179105723,4.27e-06,88111.0,88102.0,0.48183]
[1766179107108,4.27e-06,88111.0,88102.0,1.03376]
[1766179107285,4.27e-06,88114.0,88105.0,0.55193]
[1766179107601,4.27e-06,88114.0,88111.0,0.55193]
[1766179107809,4.27e-06,88114.0,88111.0,0.55203802]
[1766179109006,4.27e-06,88114.0,88111.0,0.47621802]
[1766179109333,4.27e-06,88114.0,88112.0,0.55193]
[1766179110330,4.27e-06,88114.0,88113.0,0.47611]
[1766179110524,4.27e-06,88114.0,88113.0,1.02804]
[1766179110706,4.27e-06,88114.0,88113.0,0.47611]
[1766179110913,0.01361061,88133.0,88118.0,0.55193]
[1766179111126,0.00568,88127.0,88120.0,0.55193]
[1766179111344,0.00568,88127.0,88121.0,0.55193]
[1766179112524,0.01361061,88133.0,88121.0,0.55193]
[1766179112782,0.00608,88130.0,88121.0,0.55193]
[1766179113229,0.0004,88130.0,88121.0,0.55193]
[1766179113666,0.0004,88130.0,88125.0,0.55193]
[1766179113883,0.00251938,88134.0,88122.0,0.47611]
[1766179114092,0.00251938,88134.0,88127.0,0.52518]
[1766179114291,0.4421,88152.0,88132.0,0.47556]
[1766179114490,0.45571061,88139.0,88122.0,0.52518]
[1766179114707,0.45571061,88139.0,88123.0,0.00568]
[1766179114917,0.45571061,88139.0,88123.0,0.01702777]
[1766179115136,0.07183922,88138.0,88123.0,0.00568]
[1766179115330,0.4534461,88136.0,88123.0,0.00568]
[1766179115527,0.4421,88136.0,88124.0,0.52518]
[1766179115675,0.4421,88136.0,88124.0,0.47556]
[1766179116114,0.4421,88136.0,88125.0,0.52518]
[1766179116734,0.4421,88136.0,88126.0,0.00568]
[1766179119117,0.01361061,88139.0,88127.0,0.52518]
[1766179119295,0.00568,88141.0,88129.0,0.52518]
[1766179119429,0.00568,88141.0,88130.0,0.52518]
[1766179120483,0.01361061,88139.0,88130.0,0.52518]
[1766179122506,0.01361061,88139.0,88129.0,0.47556]
[1766179125538,0.45571061,88139.0,88126.0,0.00568]
[1766179125929,0.46139061,88139.0,88126.0,0.53086]
[1766179126926,0.00548,88136.0,88119.0,0.52518]
[1766179127128,0.01134597,88137.0,88115.0,0.52518]
[1766179127129,0.00548,88137.0,88115.0,0.52518]
[1766179128140,0.45571061,88124.0,88115.0,0.00568]
[1766179128352,0.442,88106.0,88087.0,0.52518]
[1766179128539,0.00387,88096.0,88075.0,0.47556]
[1766179128738,0.01361061,88100.0,88086.0,1.12e-06]
[1766179128974,0.4079,88094.0,88076.0,0.53653383]
[1766179129175,0.4079,88094.0,88079.0,0.52518]
[1766179129375,0.4079,88094.0,88079.0,0.53653344]
[1766179129579,0.4079,88094.0,88079.0,0.52518]
[1766179129775,0.00568,88093.0,88079.0,0.53653344]
[1766179129997,0.00568,88093.0,88080.0,0.52518]
[1766179130797,0.4079,88091.0,88072.0,0.01135434]
[1766179130943,0.01703163,88093.0,88073.0,0.01135421]
[1766179130944,0.4079,88089.0,88073.0,0.01135421]
[1766179131352,0.4079,88089.0,88072.0,0.01135434]
[1766179131759,0.4079,88087.0,88071.0,0.47556]
[1766179132172,0.41358,88087.0,88071.0,0.47556]
[1766179132376,0.41358,88087.0,88071.0,0.48691447]
[1766179132577,0.41358,88087.0,88074.0,0.52518]
[1766179132784,0.41358,88087.0,88071.0,0.47556]
[1766179132785,0.01135254,88086.0,88071.0,0.47556]
[1766179132989,0.01135254,88086.0,88030.0,0.4563905]
[1766179132990,0.44165,88079.0,88067.0,0.00568]
[1766179133185,0.00568,88078.0,88067.0,0.00568]
[1766179134166,0.41358,88078.0,88067.0,0.00604048]
[1766179137610,0.00568,88078.0,88067.0,0.01739547]
[1766179137753,0.00568,88078.0,88067.0,0.53122048]
[1766179138497,0.41358,88078.0,88067.0,0.00604048]
[1766179138701,0.02246,88070.0,88059.0,0.00568]
[1766179138923,0.40222,88067.0,88059.0,0.00578813]
[1766179139082,0.40222,88067.0,88054.0,0.00568]
[1766179140070,0.41357499,88067.0,88054.0,0.00568]
[1766179140272,0.40222,88067.0,88054.0,0.00568]
[1766179140487,0.42455,88067.0,88054.0,0.00568]
[1766179140694,0.40222,88067.0,88054.0,0.00568]
[1766179141031,0.03411713,88073.0,88058.0,0.53653615]
[1766179141032,0.00572,88069.0,88058.0,0.53653615]
[1766179141194,0.39643,88073.0,88059.0,0.47556]
[1766179141628,0.00568,88072.0,88059.0,0.47556]
[1766179142620,0.01135473,88069.0,88054.0,0.00568]
[1766179142873,0.01135602,88059.0,88040.0,0.50967713]
[1766179143077,0.01361061,88061.0,88031.0,0.04544]
[1766179143078,0.05679067,88043.0,88031.0,0.04544]
[1766179143302,0.39618,88043.0,88037.0,6.557e-05]
[1766179143551,0.39618,88043.0,88026.0,0.52518]
[1766179143771,0.39628798,88043.0,88026.0,0.52518]
[1766179143994,0.39628798,88043.0,88027.0,0.53654015]
[1766179144197,0.39628798,88043.0,88027.0,0.52518]
[1766179144613,0.39628798,88043.0,88027.0,0.53654015]
[1766179144991,0.39628798,88043.0,88029.0,0.01135989]
[1766179145209,0.39628798,88043.0,88030.0,0.52974]
[1766179145423,0.00010798,88043.0,88034.0,0.01135924]
[1766179145631,0.40184,88052.0,88039.0,0.52974]
[1766179146043,0.39612,88052.0,88039.0,0.5410986]
[1766179146252,0.40184,88052.0,88039.0,0.5410986]
[1766179146474,0.40184,88052.0,88039.0,0.52974]
[1766179148100,0.39612,88052.0,88039.0,0.5410986]
[1766179148305,0.40184,88052.0,88039.0,0.52974]
[1766179149497,0.40184,88052.0,88038.0,0.4579]
[1766179149701,0.40184,88052.0,88038.0,0.00572]
[1766179149702,0.39622,88050.0,88038.0,0.00572]
[1766179150728,0.39622,88050.0,88039.0,0.52974]
[1766179150928,0.39622,88050.0,88039.0,0.5410986]
[1766179151125,0.01135576,88061.0,88043.0,0.52974]
[1766179151382,0.01361061,88057.0,88044.0,0.98192]
[1766179151593,0.40983061,88057.0,88044.0,0.98192]
[1766179151791,0.40983061,88057.0,88044.0,0.45218]
[1766179151948,0.40983061,88057.0,88040.0,0.01135847]
[1766179152156,0.00572,88056.0,88045.0,0.01135782]
[1766179152357,0.01135408,88074.0,88051.0,0.01135705]
[1766179152725,0.03412086,88070.0,88055.0,0.52974]
[1766179152910,0.40194,88073.0,88057.0,0.52974]
[1766179155391,0.41329421,88073.0,88057.0,0.52974]
[1766179155812,0.40194,88073.0,88057.0,0.52974]
[1766179157267,0.39622,88073.0,88057.0,0.52974]
[1766179157477,0.40194,88072.0,88057.0,0.52974]
[1766179157855,0.39622,88072.0,88057.0,0.52974]
[1766179158038,0.02029395,88075.0,88059.0,0.54109602]
[1766179158039,0.39622,88071.0,88059.0,0.54109602]
[1766179158243,0.39622,88071.0,88056.0,0.0113564]
[1766179158244,0.39622,88082.0,88066.0,0.54109512]
[1766179158445,0.00572,88081.0,88069.0,0.45218]
[1766179158646,0.40983061,88092.0,88075.0,0.01135395]
[1766179158844,0.40983061,88092.0,88078.0,0.48887]
[1766179158845,0.00572,88090.0,88078.0,0.48887]
[1766179159064,0.00572,88090.0,88080.0,0.52466]
[1766179160057,0.00608075,88090.0,88080.0,0.52466]
[1766179160258,0.00608075,88090.0,88082.0,0.01135305]
[1766179160454,0.00608075,88090.0,88080.0,0.52466]
[1766179160719,0.00608075,88090.0,88079.0,0.48887]
[1766179160923,0.00608075,88090.0,88076.0,0.53601383]
[1766179161059,0.00608075,88090.0,88077.0,0.5360137]
[1766179162364,0.00036075,88090.0,88077.0,0.52466]
[1766179162569,0.00572,88089.0,88077.0,0.52466]
[1766179162978,0.00572,88089.0,88078.0,0.01135357]
[1766179163596,0.00572,88089.0,88077.0,0.5360137]
[1766179164790,0.00572,88089.0,88077.0,0.52466]
[1766179165506,0.00572,88089.0,88077.0,1.01353]
[1766179166286,0.00572,88089.0,88077.0,1.0248837]
[1766179166506,0.00572,88089.0,88077.0,1.01353]
[1766179166717,0.00572,88089.0,88081.0,0.01135318]
[1766179166965,0.00572,88089.0,88082.0,0.01135305]
[1766179167201,0.00572,88089.0,88083.0,0.52466]
[1766179167435,0.00036075,88090.0,88083.0,0.52466]
[1766179167666,0.00572,88089.0,88083.0,0.53601292]
[1766179167873,0.00036075,88090.0,88084.0,0.01135279]
[1766179168052,0.00036075,88090.0,88084.0,0.52466]
[1766179168879,0.00036075,88090.0,88084.0,0.53601279]
[1766179169707,0.00036075,88090.0,88084.0,0.52466]
[1766179169841,0.00036075,88090.0,88082.0,0.48887]
[1766179170044,0.41515,88087.0,88074.0,0.01135408]
[1766179170286,0.39622,88087.0,88074.0,0.01135408]
[1766179170496,0.39622,88087.0,88072.0,0.01135434]
[1766179170722,0.39622,88087.0,88073.0,0.01135421]
[1766179170848,0.39622,88087.0,88074.0,0.01135408]
[1766179171047,0.39622,88087.0,88071.0,1.02488447]
[1766179171426,0.39622,88087.0,88074.0,0.00572]
[1766179171582,0.39622,88085.0,88074.0,0.00572]
[1766179171780,0.39622,88085.0,88071.0,1.01353]
[1766179171781,0.39622,88085.0,88072.0,0.00572]
[1766179172333,0.39622,88083.0,88069.0,0.01135473]
[1766179172548,0.39622,88081.0,88069.0,0.01135473]
[1766179173923,0.39622,88081.0,88068.0,0.00572]
[1766179174130,0.05676226,88087.0,88063.0,0.00572]
[1766179174131,0.39622,88074.0,88063.0,0.00572]
[1766179174442,0.39622,88072.0,88063.0,0.00572]
[1766179175028,0.39622,88087.0,88066.0,0.01135512]
[1766179175226,0.39622,88085.0,88069.0,0.53902]
[1766179175433,0.40809,88085.0,88069.0,0.53902]
[1766179176861,0.39622,88083.0,88069.0,0.53902]
[1766179180474,0.00572,88084.0,88070.0,0.88115965]
[1766179180650,0.00572,88084.0,88071.0,0.01707447]
[1766179180877,0.00572,88084.0,88072.0,0.55037434]
[1766179181534,0.00572,88084.0,88072.0,0.53902]
[1766179182263,0.00572,88084.0,88072.0,0.49436]
[1766179182652,0.00572,88084.0,88072.0,0.50571434]
[1766179183459,0.00572,88084.0,88072.0,0.49436]
[1766179185367,0.29351,88084.0,88072.0,0.49436]
[1766179185539,0.29351,88084.0,88071.0,0.00572]
[1766179186072,0.29357,88084.0,88071.0,0.00572]
[1766179188314,0.29357,88084.0,88066.0,0.50571512]
[1766179188315,0.01361061,88082.0,88066.0,0.49436]
[1766179188582,0.28779,88081.0,88067.0,0.00572]
[1766179190094,0.01135434,88072.0,88051.0,0.53902]
[1766179190308,0.29351,88071.0,88054.0,0.01135666]
[1766179190516,0.28779,88069.0,88054.0,0.01135666]
[1766179190743,0.28779,88069.0,88052.0,0.00572]
[1766179191522,0.29914473,88069.0,88052.0,0.00572]
[1766179191723,0.01135512,88066.0,88052.0,0.00572]
[1766179191923,0.28779,88065.0,88052.0,0.00572]
[1766179192134,0.0113555,88063.0,88048.0,0.00572]
[1766179192333,0.29914589,88060.0,88048.0,0.00572]
[1766179192508,0.01135615,88058.0,88048.0,0.00572]
[1766179192692,0.28779,88057.0,88045.0,0.00572]
[1766179193315,0.28779,88057.0,88045.0,0.00608075]
[1766179193720,0.28779,88057.0,88045.0,0.00036075]
[1766179194119,0.28779,88057.0,88045.0,7.5e-07]
[1766179195005,0.29914628,88057.0,88045.0,7.5e-07]
[1766179195411,0.28779,88057.0,88045.0,7.5e-07]
[1766179195793,0.29914628,88057.0,88045.0,7.5e-07]
[1766179196010,0.28171,88055.0,88045.0,7.5e-07]
[1766179196425,0.29306653,88055.0,88045.0,7.5e-07]
[1766179196648,0.28171,88055.0,88045.0,7.5e-07]
[1766179198053,0.28171,88053.0,88045.0,7.5e-07]
[1766179198261,0.28743,88052.0,88045.0,7.5e-07]
[1766179200438,0.01135705,88051.0,88045.0,7.5e-07]
[1766179200640,0.28171,88047.0,88045.0,7.5e-07]
[1766179202833,0.28743,88046.0,88045.0,7.5e-07]
[1766179202983,0.28171,88044.0,88031.0,0.00572]
[1766179203162,0.28171,88042.0,88031.0,0.00582798]
[1766179204201,0.01135834,88041.0,88031.0,0.00582798]
[1766179204401,0.0113586,88039.0,88031.0,0.00582798]
[1766179204612,0.01135886,88037.0,88023.0,0.53902]
[1766179204867,0.27589,88038.0,88024.0,0.00572]
[1766179205111,0.28724898,88036.0,88024.0,0.00572]
[1766179205311,0.27589,88034.0,88024.0,0.00572]
[1766179206609,0.27589,88034.0,88025.0,0.0113604]
[1766179206813,0.00572,88044.0,88029.0,0.01135989]
[1766179207013,0.00572,88043.0,88031.0,0.97573]
[1766179209007,0.00572,88043.0,88032.0,0.4647]
[1766179209876,0.5,88050.0,88039.0,0.51103]
[1766179210171,0.5,88050.0,88040.0,0.51103]
[1766179210525,0.5,88050.0,88041.0,0.51103]
[1766179211408,0.5,88050.0,88042.0,0.51103]
[1766179213606,0.27589,88049.0,88031.0,0.01135963]
[1766179213807,0.27589,88049.0,88033.0,0.97573]
[1766179214013,0.27589,88049.0,88034.0,0.51103]
[1766179214610,0.27589,88049.0,88033.0,0.4647]
[1766179214812,0.27589,88049.0,88034.0,0.51103]
[1766179215802,0.28161,88048.0,88034.0,0.51103]
[1766179217231,0.28161,88048.0,88035.0,0.00572]
[1766179219446,0.28161,88048.0,88034.0,0.51103]
[1766179219672,0.28161,88048.0,88035.0,0.00572]
[1766179219878,0.28161,88048.0,88036.0,0.48149]
[1766179220821,0.28161,88048.0,88037.0,0.48149]
[1766179223110,0.00572,88048.0,88039.0,0.47439]
[1766179223784,0.28161,88048.0,88035.0,0.48011]
[1766179223963,0.28161,88048.0,88037.0,0.48149]
[1766179227741,0.28161,88048.0,88036.0,0.47439]
[1766179230788,0.5,88050.0,88043.0,0.48149]
[1766179231006,0.5,88050.0,88046.0,0.47439]
[1766179231811,0.00572,88051.0,88043.0,0.01135808]
[1766179232015,0.00572,88051.0,88046.0,0.95588]
[1766179232227,0.00572,88051.0,88046.0,0.47439]
[1766179232421,0.00572,88051.0,88046.0,0.95588]
[1766179233614,0.00572,88051.0,88037.0,0.47439]
[1766179233845,0.49969,88049.0,88038.0,0.48149]
[1766179234962,0.49969,88049.0,88039.0,0.53104]
[1766179236527,0.49969,88049.0,88039.0,1.01227]
[1766179236740,0.49969,88049.0,88040.0,0.53104]